bitfinex-derivatives/quotes_SOLF0:USTF0_20260204
["timestamp","ask_amount","ask_price","bid_price","bid_amount"]
[1770240988560,3.68260227,92.428,92.346,3.66844107]
[1770240989159,3.68260227,92.415,92.347,9.7663]
[1770240989562,3.68260227,92.411,92.347,9.7663]
[1770240990258,3.68260227,92.411,92.346,3.66844107]
[1770240990259,3.68260227,92.406,92.337,9.7673]
[1770240990452,3.68260227,92.406,92.308,3.66844107]
[1770240990657,9.7646,92.365,92.308,3.66844107]
[1770240990952,9.7646,92.365,92.29,8.23829404]
[1770240990953,3.68260227,92.364,92.29,3.66844107]
[1770240991155,9.7669,92.343,92.29,3.66844107]
[1770240992363,9.7678,92.334,92.271,3.66844107]
[1770240993256,9.7678,92.334,92.274,9.7741]
[1770240994358,9.7687,92.325,92.274,9.7741]
[1770240994563,9.7687,92.325,92.271,3.66844107]
[1770240995267,9.77,92.313,92.254,9.7762]
[1770240995969,3.68260227,92.356,92.251,3.66844107]
[1770240996263,3.68260227,92.349,92.233,3.66844107]
[1770240996467,8.23829404,92.35,92.234,9.7783]
[1770240996468,9.7723,92.291,92.234,9.7783]
[1770240996765,3.68260227,92.29,92.233,3.66844107]
[1770240996974,9.7714,92.3,92.235,3.66844107]
[1770240997263,3.68260227,92.299,92.211,3.66844107]
[1770240997763,3.68260227,92.285,92.216,9.7802]
[1770240998566,3.68260227,92.285,92.227,9.7791]
[1770241000163,8.23829404,92.33,92.217,3.66844107]
[1770241000164,3.68260227,92.283,92.217,3.66844107]
[1770241000669,3.68260227,92.281,92.217,3.66844107]
[1770241001772,3.68260227,92.279,92.217,3.66844107]
[1770241001970,3.68260227,92.279,92.219,9.7799]
[1770241003367,3.68260227,92.329,92.22,3.66844107]
[1770241003568,3.68260227,92.329,92.231,3.66844107]
[1770241004168,3.68260227,92.3,92.239,9.7777]
[1770241005665,9.7715,92.299,92.239,9.7777]
[1770241005872,3.68260227,92.298,92.239,9.7777]
[1770241006572,3.68260227,92.294,92.239,9.7777]
[1770241007072,3.68260227,92.294,92.231,3.66844107]
[1770241007874,13.45470227,92.294,92.238,9.7778]
[1770241009677,9.7728,92.286,92.231,3.66844107]
[1770241009879,3.68260227,92.285,92.211,3.66844107]
[1770241010674,9.7741,92.274,92.224,9.7794]
[1770241011475,9.775,92.266,92.211,3.66844107]
[1770241011779,3.68260227,92.265,92.193,3.66844107]
[1770241012171,9.7768,92.249,92.193,3.66844107]
[1770241012377,19.543,92.299,92.14,19.5766]
[1770241012378,3.68260227,92.248,92.155,3.66844107]
[1770241012676,3.68260227,92.248,92.14,19.5766]
[1770241012677,3.68260227,92.248,92.171,3.66844107]
[1770241013279,9.7773,92.244,92.197,9.7822]
[1770241014181,3.68260227,92.248,92.205,9.7814]
[1770241015078,9.7753,92.263,92.214,9.7804]
[1770241016471,3.86106383,92.268,92.224,9.7793]
[1770241016883,3.86106383,92.268,92.21,8.23829404]
[1770241017182,3.86106383,92.257,92.19,8.23829404]
[1770241017378,3.86106383,92.257,92.191,3.59407203]
[1770241018184,3.86106383,92.252,92.199,9.782]
[1770241018376,3.86106383,92.252,92.191,3.59407203]
[1770241018874,3.86106383,92.25,92.191,3.59407203]
[1770241019785,3.76883442,92.248,92.171,3.73651272]
[1770241020483,9.7779,92.238,92.18,9.784]
[1770241021287,9.7785,92.232,92.18,9.784]
[1770241022884,9.7785,92.232,92.188,9.7832]
[1770241023183,9.7785,92.232,92.171,3.73651272]
[1770241024683,9.7785,92.232,92.18,9.784]
[1770241025691,9.7796,92.222,92.171,3.73651272]
[1770241025991,3.76883442,92.221,92.154,3.73651272]
[1770241027490,3.76883442,92.221,92.161,3.73651272]
[1770241028185,9.778,92.237,92.181,9.7839]
[1770241028387,3.76883442,92.236,92.181,9.7839]
[1770241028791,3.76883442,92.236,92.161,3.73651272]
[1770241029592,9.7795,92.223,92.171,9.7849]
[1770241031889,9.7807,92.212,92.161,3.73651272]
[1770241032089,3.76883442,92.211,92.145,3.73651272]
[1770241032495,3.76883442,92.207,92.155,9.7867]
[1770241033397,9.7814,92.206,92.155,9.7867]
[1770241033594,3.76883442,92.225,92.164,3.73651272]
[1770241034198,3.76883442,92.225,92.19,9.7829]
[1770241034397,3.76883442,92.225,92.164,3.73651272]
[1770241034797,19.5477,92.277,92.164,3.73651272]
[1770241034798,3.76883442,92.222,92.164,3.73651272]
[1770241035000,3.76883442,92.222,92.14,8.26179119]
[1770241035001,3.76883442,92.222,92.141,3.73651272]
[1770241035394,3.76883442,92.193,92.141,3.73651272]
[1770241035789,3.76883442,92.193,92.124,3.73651272]
[1770241035996,19.5579,92.229,92.124,3.73651272]
[1770241035997,9.785,92.172,92.124,3.73651272]
[1770241036700,9.785,92.172,92.127,9.7896]
[1770241037202,9.785,92.172,92.124,3.73651272]
[1770241037391,9.785,92.172,92.124,13.52641272]
[1770241037592,3.76883442,92.147,92.076,3.73651272]
[1770241037998,3.76883442,92.147,92.077,9.795]
[1770241038698,9.789,92.134,92.077,9.795]
[1770241038896,3.76883442,92.133,92.077,9.795]
[1770241039394,3.76883442,92.133,92.076,3.73651272]
[1770241039395,9.7882,92.141,92.085,9.7941]
[1770241039801,3.76883442,92.15,92.085,3.73651272]
[1770241040195,3.76883442,92.139,92.065,3.73651272]
[1770241040392,3.76883442,92.139,92.041,3.73651272]
[1770241041701,3.76883442,92.113,92.053,9.7975]
[1770241042002,3.76883442,92.113,92.041,3.73651272]
[1770241042399,19.5702,92.171,92.021,3.73651272]
[1770241042400,3.76883442,92.11,92.021,3.73651272]
[1770241043699,3.76883442,92.093,92.03,9.7999]
[1770241044303,3.77485816,92.09,92.03,9.7999]
[1770241044907,3.77485816,92.09,92.021,3.73651272]
[1770241045209,3.77485816,92.088,92.021,3.73651272]
[1770241045409,3.77485816,92.088,92.023,13.43495563]
[1770241045608,3.77485816,92.088,92.024,3.63425563]
[1770241046011,3.77485816,92.088,92.027,13.43445563]
[1770241046908,3.77485816,92.084,92.027,13.43445563]
[1770241047609,3.77485816,92.082,92.016,13.43575563]
[1770241047807,3.77485816,92.082,91.991,3.63425563]
[1770241048112,3.77485816,92.069,91.991,3.63425563]
[1770241048718,3.77485816,92.066,92.005,9.8026]
[1770241049118,3.77485816,92.066,91.991,3.63425563]
[1770241049313,8.26179119,92.12,91.966,1.89068782]
[1770241049314,9.795,92.078,92.015,3.63425563]
[1770241049521,3.77485816,92.083,92.015,3.63425563]
[1770241050220,3.77485816,92.083,92.031,9.7998]
[1770241050414,3.77485816,92.083,92.015,3.63425563]
[1770241051317,3.77485816,92.083,92.031,9.7999]
[1770241051527,3.77485816,92.083,92.015,3.63425563]
[1770241051818,3.77485816,92.101,92.051,3.63425563]
[1770241052518,3.77485816,92.122,92.066,9.7962]
[1770241052715,3.77485816,92.14,92.071,3.63425563]
[1770241053519,3.77485816,92.127,92.071,3.63425563]
[1770241054023,9.7907,92.118,92.061,9.7967]
[1770241054221,9.7907,92.118,91.728,83.99683951]
[1770241054222,2.89899901,92.117,92.001,7.42310958]
[1770241054622,8.26179119,92.13,92.001,7.42310958]
[1770241054623,9.7943,92.084,92.001,7.42310958]
[1770241054925,8.26179119,92.11,92.006,7.42310958]
[1770241055322,9.7939,92.088,92.009,7.32439411]
[1770241055723,152.229,92.161,92.021,7.32439411]
[1770241055724,8.26179119,92.14,92.021,7.32439411]
[1770241056618,152.2826,92.129,92.021,7.32439411]
[1770241056823,8.26179119,92.12,92.021,7.32439411]
[1770241057218,8.26179119,92.12,92.001,7.34351218]
[1770241057927,9.7942,92.085,92.004,7.34351218]
[1770241058719,9.7942,92.085,92.007,17.14601218]
[1770241058921,9.7942,92.085,92.008,7.35537136]
[1770241059121,9.7942,92.085,92.011,9.802]
[1770241059329,9.7942,92.085,92.012,7.35537136]
[1770241060229,152.2135,92.171,91.966,1.89068782]
[1770241060230,184.7621,92.208,92.061,7.35537136]
[1770241060428,152.1332,92.219,92.088,9.7938]
[1770241060429,8.26179119,92.2,92.088,9.7938]
[1770241060636,8.26179119,92.2,92.081,7.35537136]
[1770241060935,9.7878,92.145,92.081,7.35537136]
[1770241061732,8.26179119,92.2,92.081,7.35537136]
[1770241062033,19.5608,92.215,92.081,7.35537136]
[1770241062432,9.7852,92.169,92.096,7.4016789]
[1770241062627,8.26179119,92.2,92.096,7.4016789]
[1770241062831,152.166,92.199,92.076,7.4016789]
[1770241063138,9.7889,92.135,92.076,7.4016789]
[1770241063333,9.7889,92.135,91.983,10.06323662]
[1770241063334,152.2382,92.156,91.979,19.6109]
[1770241063634,152.2302,92.161,92.031,9.7999]
[1770241063635,9.7919,92.107,92.031,9.7999]
[1770241065330,8.26179119,92.12,92.015,7.14256805]
[1770241066131,9.7959,92.069,92.015,7.14256805]
[1770241068028,8.26179119,92.11,92.015,7.14256805]
[1770241069837,9.7968,92.061,92.015,7.14256805]
[1770241070138,8.26179119,92.11,92.015,7.14256805]
[1770241071034,9.7966,92.062,92.015,7.14256805]
[1770241071932,8.26179119,92.11,92.015,7.14256805]
[1770241072629,8.26179119,92.15,92.021,7.08115228]
[1770241072835,152.2517,92.148,92.021,7.08115228]
[1770241073037,152.2518,92.147,92.025,7.08077235]
[1770241073336,19.5768,92.14,92.025,7.08077235]
[1770241073733,19.5768,92.14,92.027,7.08077235]
[1770241074440,9.7937,92.09,92.032,7.08077294]
[1770241075035,9.7927,92.099,92.037,7.03576199]
[1770241075432,9.7936,92.091,92.039,9.799]
[1770241075740,9.7936,92.091,92.037,7.03576199]
[1770241076036,19.5805,92.123,92.037,7.03576199]
[1770241076238,19.5805,92.123,92.001,7.03576199]
[1770241076937,9.7939,92.088,92.031,9.7998]
[1770241077132,152.2417,92.154,92.032,7.02793401]
[1770241077133,27.83649119,92.15,92.032,7.02793401]
[1770241077539,9.7927,92.099,92.037,7.02793401]
[1770241077938,19.5749,92.149,92.037,7.02793401]
[1770241078940,9.84529295,92.154,92.064,7.02011247]
[1770241079144,19.5695,92.174,92.064,7.02011247]
[1770241080244,9.84529295,92.169,92.064,7.02011247]
[1770241080443,9.84529295,92.172,92.064,7.02011247]
[1770241080745,9.7886,92.138,92.078,9.7948]
[1770241081335,9.7865,92.157,92.086,7.02722463]
[1770241082735,9.7855,92.167,92.102,7.02722463]
[1770241083435,9.7863,92.159,92.102,7.02722463]
[1770241083637,8.28678058,92.19,92.102,7.02722463]
[1770241083834,9.84529295,92.202,92.102,7.02722463]
[1770241084045,9.7856,92.166,92.112,9.7913]
[1770241084239,9.84529295,92.189,92.102,7.02722463]
[1770241085243,9.787,92.153,92.102,7.02722463]
[1770241085450,9.84529295,92.197,92.102,7.02722463]
[1770241085743,9.7858,92.165,92.102,7.02722463]
[1770241086343,9.7858,92.165,92.114,7.02224534]
[1770241086549,9.7846,92.176,92.114,7.02224534]
[1770241086745,19.5594,92.222,92.114,7.02224534]
[1770241086746,9.84529295,92.224,92.114,7.02224534]
[1770241087045,19.71997335,92.259,92.114,7.02224534]
[1770241087046,9.84529295,92.293,92.181,7.01644862]
[1770241087250,349.73822333,92.3,92.201,7.01644862]
[1770241087443,349.73822333,92.3,92.204,7.01644862]
[1770241088246,9.7726,92.288,92.223,7.01644862]
[1770241088751,9.84529295,92.352,92.16,8.28678058]
[1770241088752,9.7675,92.337,92.254,7.01644862]
[1770241089352,9.7675,92.337,92.261,7.15964606]
[1770241090047,9.7661,92.35,92.261,7.15964606]
[1770241091452,8.28678058,92.41,92.281,7.17238016]
[1770241091653,343.26429637,92.427,92.301,7.17238016]
[1770241091949,151.8092,92.416,92.301,7.17238016]
[1770241092146,8.28678058,92.41,92.301,7.17238016]
[1770241093153,343.26429637,92.427,92.301,7.17238016]
[1770241093350,9.7604,92.404,92.317,16.93137757]
[1770241093556,343.26429637,92.427,92.318,7.16187757]
[1770241093752,151.7938,92.425,92.318,7.16187757]
[1770241093958,343.26429637,92.427,92.318,7.16187757]
[1770241094455,9.7614,92.395,92.318,7.16187757]
[1770241095050,9.7627,92.382,92.318,7.16187757]
[1770241095248,8.28678058,92.43,92.319,7.15802457]
[1770241095450,357.21804442,92.45,92.321,7.15802457]
[1770241096151,357.21804442,92.45,92.342,7.15802457]
[1770241096752,9.7602,92.406,92.342,7.15802457]
[1770241097656,8.28678058,92.43,92.342,7.15802457]
[1770241097861,8.28678058,92.41,92.301,7.15662156]
[1770241098253,8.28678058,92.39,92.301,7.15662156]
[1770241098759,8.28678058,92.39,92.279,7.15662156]
[1770241098956,8.28678058,92.39,92.26,8.28678058]
[1770241098957,8.28678058,92.41,92.281,7.14196133]
[1770241099159,9.7629,92.38,92.306,7.14196133]
[1770241099553,8.28678058,92.43,92.306,7.14196133]
[1770241099856,9.76,92.407,92.32,7.14196133]
[1770241100049,8.28678058,92.43,92.32,7.14196133]
[1770241101659,9.76,92.407,92.326,7.19747674]
[1770241102254,357.21804442,92.45,92.326,7.19747674]
[1770241102255,348.93126384,92.45,92.326,7.19747674]
[1770241103052,348.93126384,92.45,92.338,7.20104235]
[1770241103261,348.93126384,92.45,92.341,7.20104235]
[1770241103660,9.7585,92.422,92.343,7.20104235]
[1770241104455,9.757,92.436,92.361,7.20082818]
[1770241105862,9.757,92.436,92.365,7.2040739]
[1770241106460,9.7582,92.425,92.365,7.2040739]
[1770241107759,9.7576,92.431,92.37,9.7638]
[1770241108166,9.7562,92.443,92.373,9.7635]
[1770241108866,9.7562,92.443,92.374,7.20952798]
[1770241109065,9.7562,92.443,92.377,16.97378599]
[1770241109465,348.93126384,92.45,92.378,7.21068599]
[1770241109866,348.93126384,92.45,92.382,16.97328599]
[1770241110268,9.757,92.436,92.382,7.21068599]
[1770241112267,9.757,92.436,92.36,8.28678058]
[1770241112268,9.7559,92.446,92.386,7.22224037]
[1770241114167,9.7547,92.458,92.391,7.23421016]
[1770241115471,9.7547,92.458,92.397,7.27945371]
[1770241117673,9.7547,92.458,92.38,8.28678058]
[1770241117674,9.7533,92.471,92.413,7.29884918]
[1770241118476,8.28678058,92.52,92.417,7.29884918]
[1770241118772,1.8824344,92.515,92.417,7.29884918]
[1770241118976,1.8824344,92.515,92.366,151.8895]
[1770241118977,9.7501,92.502,92.437,7.31861788]
[1770241120775,9.7501,92.502,92.447,9.7558]
[1770241121973,1.88206281,92.525,92.439,7.32960825]
[1770241122677,8.28678058,92.5,92.421,7.32960825]
[1770241123680,9.7538,92.466,92.421,7.32960825]
[1770241125083,19.4975,92.515,92.421,7.32960825]
[1770241125277,8.28678058,92.52,92.421,7.32960825]
[1770241126380,8.28678058,92.52,92.426,7.34876536]
[1770241127583,9.7541,92.464,92.426,7.34876536]
[1770241127786,8.28678058,92.5,92.408,7.26708725]
[1770241128284,9.7551,92.454,92.408,7.26708725]
[1770241129290,19.504,92.484,92.408,7.26708725]
[1770241129493,8.28678058,92.48,92.386,7.26159865]
[1770241130386,9.7583,92.424,92.386,7.26159865]
[1770241130587,8.28678058,92.46,92.363,7.26159865]
[1770241130789,8.28678058,92.44,92.363,7.26159865]
[1770241130982,151.8107,92.415,92.292,7.25795498]
[1770241131184,8.28678058,92.4,92.292,7.25795498]
[1770241131389,8.28678058,92.44,92.311,7.25795498]
[1770241131689,8.28678058,92.44,92.339,7.25795498]
[1770241132092,9.7605,92.403,92.339,7.25795498]
[1770241132794,19.5086,92.462,92.342,7.25795498]
[1770241132795,9.76,92.408,92.342,7.25795498]
[1770241133293,9.76,92.408,92.345,7.16550337]
[1770241134390,9.761,92.399,92.345,7.16550337]
[1770241134590,19.51,92.455,92.345,7.16550337]
[1770241135096,19.51,92.455,92.348,7.16387785]
[1770241135388,19.51,92.455,92.351,7.16387785]
[1770241135597,378.48529467,92.468,92.351,7.16387785]
[1770241136793,9.7583,92.424,92.362,7.16387785]
[1770241137890,9.7593,92.414,92.362,7.16387785]
[1770241139599,9.7583,92.424,92.362,7.16387785]
[1770241139794,378.48529467,92.468,92.362,7.16387785]
[1770241139996,378.48529467,92.468,92.316,19.5393]
[1770241139997,378.48529467,92.468,92.371,7.1133136]
[1770241140397,8.2330783,92.45,92.331,7.1133136]
[1770241141199,151.7566,92.448,92.337,7.38756879]
[1770241141401,8.2330783,92.43,92.337,7.38756879]
[1770241142294,18.07837125,92.47,92.337,7.38756879]
[1770241142496,8.2330783,92.47,92.337,7.38756879]
[1770241142996,8.2330783,92.47,92.347,7.45662562]
[1770241143994,9.7574,92.432,92.349,9.7661]
[1770241144200,19.5082,92.464,92.351,7.45662562]
[1770241145199,9.7593,92.414,92.356,7.46799902]
[1770241145906,19.5082,92.464,92.359,7.46799902]
[1770241145907,9.7583,92.424,92.359,7.46799902]
[1770241146197,19.5085,92.463,92.359,7.46799902]
[1770241146500,9.7602,92.406,92.359,7.46799902]
[1770241146699,8.2330783,92.45,92.359,7.46799902]
[1770241146899,19.5117,92.447,92.359,7.46799902]
[1770241147299,151.7753,92.437,92.34,7.47123483]
[1770241147501,151.7753,92.437,92.262,19.5508]
[1770241147502,9.7647,92.364,92.32,7.47123483]
[1770241147802,8.2330783,92.41,92.32,7.47123483]
[1770241148000,9.7648,92.363,92.32,7.47123483]
[1770241148197,9.7648,92.363,92.281,7.47123483]
[1770241148702,19.5204,92.406,92.291,7.47123483]
[1770241148703,9.7657,92.354,92.291,7.47123483]
[1770241149197,9.7667,92.344,92.291,7.47123483]
[1770241149397,8.2330783,92.37,92.251,7.54230623]
[1770241150696,9.7675,92.336,92.267,7.54230623]
[1770241150902,8.2330783,92.37,92.267,7.54230623]
[1770241151298,160.1178783,92.37,92.267,7.54230623]
[1770241151702,8.2330783,92.35,92.267,7.54230623]
[1770241152200,9.7696,92.317,92.267,7.54230623]
[1770241153207,9.7706,92.308,92.267,7.54230623]
[1770241154703,151.8844,92.37,92.235,7.55585337]
[1770241154704,8.2330783,92.33,92.235,7.55585337]
[1770241155304,9.7719,92.295,92.238,7.55558738]
[1770241156506,9.7709,92.304,92.241,7.55558738]
[1770241157409,9.772,92.294,92.241,7.55558738]
[1770241160306,9.7709,92.305,92.241,7.55558738]
[1770241160510,19.5335,92.344,92.26,7.56417807]
[1770241160907,9.7705,92.308,92.26,7.56417807]
[1770241161608,2.03583751,92.349,92.26,7.56417807]
[1770241162114,2.03583751,92.349,92.261,3.87613874]
[1770241162514,2.03583751,92.348,92.261,3.87613874]
[1770241162817,2.03583751,92.339,92.261,3.87613874]
[1770241163615,1.99239736,92.317,92.261,3.87613874]
[1770241164318,9.7721,92.293,92.261,3.87613874]
[1770241164516,9.7721,92.293,92.235,3.91983756]
[1770241164920,9.7712,92.301,92.239,3.91983756]
[1770241165617,9.7703,92.311,92.255,3.91983756]
[1770241166817,9.7703,92.311,92.22,8.2330783]
[1770241166818,9.7703,92.311,92.259,3.91983756]
[1770241169420,9.7693,92.32,92.259,3.91983756]
[1770241169815,9.7693,92.32,92.262,3.91983756]
[1770241170114,9.7704,92.309,92.262,3.91983756]
[1770241170315,2.27912516,92.334,92.245,3.91983756]
[1770241171019,9.7727,92.288,92.245,3.91983756]
[1770241171220,9.7727,92.288,92.231,9.7786]
[1770241171221,9.7727,92.288,92.232,3.91983756]
[1770241171612,9.7743,92.273,92.232,3.91983756]
[1770241175728,2.28346313,92.332,92.241,3.91983756]
[1770241176418,9.7691,92.321,92.269,3.91983756]
[1770241177625,9.7702,92.312,92.269,3.91983756]
[1770241177825,2.28346313,92.332,92.269,3.91983756]
[1770241180026,2.28346313,92.332,92.241,3.91983756]
[1770241180827,9.7707,92.307,92.252,3.91983756]
[1770241181024,2.28346313,92.332,92.252,3.91983756]
[1770241181220,9.7705,92.308,92.252,3.91983756]
[1770241181625,2.28346313,92.332,92.252,3.91983756]
[1770241182029,2.21522498,92.313,92.235,3.91983756]
[1770241183027,2.21522498,92.313,92.237,3.91983756]
[1770241184123,2.21522498,92.313,92.243,3.91983756]
[1770241185534,9.7723,92.291,92.243,3.91983756]
[1770241186130,2.26980271,92.29,92.229,3.91983756]
[1770241187334,9.7743,92.272,92.229,3.91983756]
[1770241187530,2.26500146,92.31,92.231,3.91983756]
[1770241188835,9.7717,92.297,92.239,3.91983756]
[1770241189730,9.7717,92.297,92.244,3.91983756]
[1770241190127,2.26500146,92.31,92.244,3.91983756]
[1770241192338,19.5364,92.33,92.244,3.91983756]
[1770241192339,9.7731,92.284,92.244,3.91983756]
[1770241192532,2.25692361,92.294,92.244,3.91983756]
[1770241193237,9.773,92.285,92.244,3.91983756]
[1770241194040,9.772,92.295,92.244,3.91983756]
[1770241194834,9.7711,92.303,92.247,3.59772159]
[1770241195236,2.22918985,92.311,92.247,3.59772159]
[1770241195639,9.7718,92.296,92.249,3.59772159]
[1770241195831,2.21937681,92.328,92.249,3.59772159]
[1770241197040,2.21937681,92.328,92.259,3.59772159]
[1770241198343,2.10037322,92.344,92.259,3.59772159]
[1770241198741,9.7684,92.328,92.278,3.59772159]
[1770241199038,2.10037322,92.344,92.278,3.59772159]
[1770241199239,2.10037322,92.344,92.281,3.67530983]
[1770241199240,9.7682,92.33,92.281,3.67530983]
[1770241200141,9.7682,92.33,92.27,8.2330783]
[1770241200142,2.09698635,92.329,92.264,3.67530983]
[1770241200744,2.09698635,92.329,92.246,3.67530983]
[1770241201338,2.16632584,92.303,92.246,3.67530983]
[1770241201541,2.16632584,92.303,92.231,9.7786]
[1770241201542,2.16632584,92.303,92.211,3.67530983]
[1770241201736,9.7748,92.267,92.213,3.67530983]
[1770241203443,2.16632584,92.279,92.213,3.67530983]
[1770241203648,2.16632584,92.279,92.193,3.67530983]
[1770241204348,9.776,92.257,92.193,3.67530983]
[1770241204845,2.16632584,92.279,92.211,9.7807]
[1770241205048,2.16632584,92.279,92.212,3.67530983]
[1770241205347,9.7748,92.268,92.212,3.67530983]
[1770241205546,9.84529295,92.307,92.175,13.41904693]
[1770241205547,2.17982523,92.267,92.191,3.67530983]
[1770241206745,9.7763,92.253,92.191,3.67530983]
[1770241207550,9.7763,92.253,92.193,3.69683287]
[1770241209051,9.7754,92.262,92.196,3.69683287]
[1770241209248,2.22502619,92.285,92.196,3.69683287]
[1770241210751,9.7744,92.272,92.215,3.69683287]
[1770241211252,9.7753,92.263,92.215,3.69683287]
[1770241211648,2.22502619,92.285,92.215,3.69683287]
[1770241211949,9.7731,92.284,92.226,9.7791]
[1770241212150,9.7731,92.284,92.166,13.41904693]
[1770241212151,9.7731,92.284,92.227,3.69683287]
[1770241212346,2.21573844,92.319,92.227,3.69683287]
[1770241212542,2.21573844,92.319,92.231,3.69683287]
[1770241213147,9.7723,92.292,92.236,3.69683287]
[1770241213454,2.24196227,92.299,92.236,3.69683287]
[1770241213952,9.7731,92.284,92.236,3.69683287]
[1770241214347,2.24196227,92.332,92.236,3.69683287]
[1770241214543,2.24196227,92.332,92.251,3.69683287]
[1770241215651,2.24196227,92.332,92.27,3.69683287]
[1770241215954,2.26021091,92.351,92.271,3.69683287]
[1770241216745,2.26021091,92.351,92.29,9.7723]
[1770241216746,9.7665,92.346,92.29,9.7723]
[1770241218055,13.21560058,92.39,92.29,9.7723]
[1770241218056,2.75975622,92.368,92.299,3.69683287]
[1770241218749,2.75975622,92.368,92.308,3.69683287]
[1770241219749,9.7644,92.366,92.308,3.69683287]
[1770241221457,2.80017553,92.358,92.291,3.69683287]
[1770241221954,9.7673,92.339,92.291,3.69683287]
[1770241222255,2.80017553,92.339,92.274,3.69683287]
[1770241223256,2.80017553,92.339,92.276,3.69683287]
[1770241223257,9.7682,92.33,92.276,3.69683287]
[1770241223759,2.80287719,92.357,92.276,3.69683287]
[1770241224053,9.84529295,92.391,92.278,3.69685902]
[1770241224054,12.56540729,92.339,92.278,3.69685902]
[1770241224254,2.79820729,92.338,92.278,3.69685902]
[1770241225554,9.7676,92.336,92.278,3.69685902]
[1770241226753,9.7676,92.336,92.279,3.69685902]
[1770241227756,2.79820729,92.338,92.292,9.7721]
[1770241228959,9.7664,92.347,92.292,13.46895902]
[1770241230352,9.7673,92.339,92.292,13.46895902]
[1770241231056,9.7673,92.339,92.293,3.69685902]
[1770241231263,13.26192956,92.333,92.284,3.69685902]
[1770241231465,9.7679,92.333,92.284,3.69685902]
[1770241232161,3.49402956,92.349,92.284,3.69685902]
[1770241232367,155.07108834,92.743,92.234,10.06323662]
[1770241232368,3.49402956,92.368,92.303,3.69685902]
[1770241233766,9.7661,92.35,92.303,3.69685902]
[1770241233966,3.49402956,92.368,92.303,3.69685902]
[1770241235764,9.767,92.342,92.303,3.69685902]
[1770241235968,3.49402956,92.368,92.303,3.69685902]
[1770241236469,9.766,92.351,92.303,3.69685902]
[1770241237864,13.14327471,92.351,92.303,3.69685902]
[1770241238067,13.14327471,92.351,92.298,9.7715]
[1770241238068,3.37727471,92.346,92.289,9.7725]
[1770241238269,3.37727471,92.346,92.29,3.69685902]
[1770241238773,9.7671,92.341,92.293,3.69685902]
[1770241239674,3.37727471,92.346,92.295,3.69685902]
[1770241241967,3.37727471,92.346,92.286,9.7727]
[1770241242167,3.37727471,92.346,92.287,3.69685902]
[1770241242672,3.37727471,92.346,92.235,10.05995157]
[1770241242673,3.44558547,92.368,92.297,3.69685902]
[1770241243873,3.48181768,92.346,92.297,3.69685902]
[1770241244070,3.48181768,92.346,92.241,3.69685902]
[1770241244376,3.48181768,92.309,92.241,3.69685902]
[1770241245468,9.7709,92.305,92.25,9.7766]
[1770241245672,8.24972618,92.35,92.251,3.69685902]
[1770241245875,3.56396419,92.349,92.251,3.69685902]
[1770241246970,9.7699,92.314,92.26,9.7755]
[1770241247178,3.59102318,92.318,92.251,3.69685902]
[1770241248479,9.7718,92.296,92.251,3.69685902]
[1770241249174,9.7711,92.302,92.251,3.69685902]
[1770241250675,3.62975142,92.319,92.251,3.69685902]
[1770241251475,3.62975142,92.319,92.261,3.69685902]
[1770241251476,9.7695,92.318,92.261,3.69685902]
[1770241251676,3.67986931,92.358,92.261,3.69685902]
[1770241252277,3.67986931,92.358,92.25,8.24972618]
[1770241252278,13.44766931,92.334,92.281,3.69685902]
[1770241252780,3.67986931,92.334,92.281,3.69685902]
[1770241252979,3.68557779,92.376,92.281,3.69685902]
[1770241253484,3.68557779,92.342,92.281,3.69685902]
[1770241253987,9.7674,92.338,92.283,3.67161929]
[1770241254189,3.68557779,92.342,92.283,3.67161929]
[1770241255788,9.768,92.332,92.283,3.67161929]
[1770241255988,3.68557779,92.342,92.283,3.67161929]
[1770241256487,9.7674,92.337,92.285,9.7728]
[1770241256690,3.70223479,92.336,92.271,3.67161929]
[1770241257889,3.73659665,92.318,92.271,3.67161929]
[1770241259791,9.7697,92.316,92.271,3.67161929]
[1770241262994,3.82250135,92.349,92.271,3.67161929]
[1770241263487,3.82250135,92.349,92.282,3.9630344]
[1770241263691,9.7678,92.334,92.282,3.9630344]
[1770241264692,9.7678,92.334,92.283,9.7731]
[1770241264882,9.7678,92.334,92.284,3.9630344]
[1770241265693,9.7678,92.334,92.286,9.7728]
[1770241266496,9.7685,92.327,92.284,3.9630344]
[1770241267698,3.83041251,92.335,92.268,3.9630344]
[1770241268694,19.5301,92.36,92.268,3.9630344]
[1770241268695,9.7701,92.312,92.268,3.9630344]
[1770241268890,3.8326834,92.311,92.25,3.9630344]
[1770241269491,9.7703,92.31,92.258,9.7757]